Workbook

Sheet Instruktion till mallen
A1: Den här fliken redogör för syfte med mallen och hur den ska fyllas i. fliken innehåller endast text i kolumn A. mallen innehåller 6 flikar totalt
A2: Redovisning av förnybart drivmedel och/eller el som kravställts i AUC.293/AFG.36 (Administrativa föreskrifter)
A3: Syfte
A4: Denna TMALL ska användas av leverantör till Trafikverket vid redovisning av kravuppfyllnad beträffande förnybara drivmedel och/eller el i AUC.293/AFG.36 (Administrativa föreskrifter i kontraktet).
A5: För ifyllnad av mallen
A6: Mallen innehåller två flikar för uppföljning av drivmedelskrav. Vilken flik som ska fyllas i beror på hur kravet är formulerat i de administrativa föreskrifterna (AF). Till hjälp att fylla i mallen finns två efterföljande flikar med exempel Välj fliken "Antal l dieselekvivalenter" om kravet i AFG.36/AUC.293 är formulerat som minsta antal liter dieselekvivalenter som ska utgöras av förnybart drivmedel och/eller el. Välj fliken "Andel förnybart" om kravet i AFG.36/AUC.293 är formulerat som minsta andel förnybart drivmedel och/eller el (omräknad till energi) av total energimängd . Endast förbrukade mängder av respektive drivmedel eller el fylls i.
A7: Resultat
A8: Resultatet i mallen visar om kravet är uppfyllt eller inte Redovisningen av resultatet i mallen är utformat för att stämma överens med Trafikverkets generella vitesmodell för dessa drivmedelskrav. I Trafikverkets upphandlingar av Entreprenadkontrakt som görs med upphandlingsmallar enligt version 3.20 (införda 2024-03-15) utfaller vite för den mängd dieselekvivalenter som inte uppfyller kravet även där kravet är uttryckt som minsta andel förnybart drivmedel och/eller el (omräknad till energi) av total energimängd. På grund av detta ingår i resultatredovisningen även en uträkning av mängd dieselekvivalenter som saknas för kravuppfyllelse.
A9: Verifiering av resultat
A10: Mängder av el och förnybart drivmedel ska baseras på vad som har tankats och använts vid utfört arbete av aktuella fordon och/eller maskiner. Mängderna ska kunna verifieras med tankningskvitto eller faktura. Om endast total mängd tankat förnybart drivmedel är känt och detta bara delvis har använts i entreprenad för Trafikverket får mängden som använts i entreprenaden för Trafikverket beräknas. Denna beräkning kan baseras på andel timmar eller kilometer av vad som totalt använts för aktuell tankning. beräkningen ska godkännas av beställaren. För verifiering av elförbrukning i bilar och lätta lastbilar tillåts ett schablonvärde per sträcka användas. Schablonvärdet som gäller för elbil är då 0,22kWh/km och för lätt eldriven lastbil 0,26 kWh/km. Som verifikat räknas då avläsning av körsträcka via körjournal, mätarställning, färddator eller digitala system För beräkning av mängden fossila drivmedel i tabell A i fliken "Andel förnybart" får drivmedelsschablon användas för att ersätta uppgift om verklig uppmätt förbrukning. Drivmedelsschablonen uttryckt i liter per kilometer, liter per timma eller motsvarande ska baseras på likvärdigt fordon eller maskin.
A11: Förklaring till kolumnerna i tabellerna
A12: Mängd: Här ska den faktiska mängden av varje sort av drivmedel som har använts under året fyllas i Enhet: Den enhet varje drivmedelsslag tillförs fordonet med. Energiinehåll: Anger hur mycket energi i termer av J eller kWh som utvecklas vid förbränning av en viss mängd av ett bränsleslag alternativt förbrukning av en viss mängd el. Olika drivmedel har olika energiinnehåll (värmevärden). Det innebär att den effekt som kan nyttjas av samma mängd drivmedel skiljer sig åt. Så t.ex. så ger 1l fossil diesel 9,8 kWh medan 1l HVO-100 endast ger 9,44 kWh. I beräkningarna antas bensin och alkylatbensin ha samma energiinnehåll som diesel. kWh/enhet: Den enhet som det specifika drivmedlet är beskrivet med i underlag redovisade i fliken "källhänvisningar" i denna mall Omräkningsfaktorn: Används i beräkningarna för att få en jämförelse till hur effektivt energiinnehållet i alla drivmedel kan omvandlas till nytta i respektive motor i förhållande till fossil diesel en dieselmotor används i beräkningarna en omräkningsfaktor. En elmotor är t.ex. 3 gånger så effektiv medan en gasmotor har 25% sämre effektivitet än en dieselmotor. Omräkningsfaktorn har beslutats av Trafikverket baserat på underlag från olika källor Total omräknad energimängd (kWh): Beräkning av den totala mängden nyttjad energi av respektive drivmedel omvandlat till hur stor mängd energianvändning det motsvarar för fossil diesel i en dieselmotor. Resultatet i denna kolumn används för att svara på om kravet för andel förnybart eller el har uppnåtts eller inte i fliken "Andel förnybart" Dieselekvivalenter: Beräkning av hur många liter dieselekvivalenter den inlagda mängden olika drivmedel och el motsvarar. Resultatet i denna kolumn används för att svara på om mängden förnybara drivmedel eller el som använts motsvarar de antal l dieselekvivalenter som kravställts i fliken "antal l dieselekvivalenter". OBS! Energiinnehåll och omräkningsfaktorer är fastställda av Trafikverket. Andra värden än de fastställda tillåts ej användas vid redovisningen.
A13: Källhänvisningar
A14: Den sista fliken i mallen redogör för vilka källor som använts för beräkningarna av energiinnehåll för de olika drivmedelsslagen

Sheet Antal l dieselekvivalenter
A1: Denna flik innehåller tabeller som ska fyllas i för redovisning enligt krav på antal liter dieselekvivalenter samt en instruktion i en faktaruta ovanför tabellen
A2: Krav på antal liter dieselekvivalenter som ska bestå av förnybart drivmedel och/eller el
A3: Använd denna flik om kravet i AFG.36/AUC.293 är formulerat som minsta antal liter dieselekvivalenter som ska utgöras av förnybart drivmedel och/eller el.
A4: Innan du fyller i mallen läs informationen i fliken "Instruktion till mallen"
A21: Redovisning gäller för år:
A22: Antal liter dieselekvivalenter som ska vara förnybara: | C22: l
A23: Energiinehåll fossil diesel: | B23: 9.8 | C23: kWh/l
A24: Tabell 1. Förnybara drivmedel och el (omfattas av krav enligt AFG.36/AUC.293)
A25: Drivmedel | B25: Mängd | C25: Enhet | D25: Energiinnehåll | E25: kWh/enhet | F25: omräkningsfaktor | G25: Dieselekvivalenter (l)
A26: HVO 100% | C26: l | D26: 9.44 | E26: kWh/liter | F26: 1 | G26: =B26*D26/$B$23*F26 -> 0
A27: RME eller annan FAME 100% | C27: l | D27: 9.17 | E27: kWh/liter | F27: 1 | G27: =B27*D27/$B$23*F27 -> 0
A28: E85 | C28: l | D28: 6.59 | E28: kWh/liter | F28: 1 | G28: 0
A29: ED95 | C29: l | D29: 5.9 | E29: kWh/liter | F29: 1 | G29: 0
A30: Biogas (flytande, gas) eller fordonsgas om den innehåller minst 75% biogas | C30: kg | D30: 13.6 | E30: kWh/kg | F30: 0.75 | G30: 0
A31: El | C31: kWh | D31: 1 | E31: kWh/kWh | F31: 3 | G31: 0
A32: Vätgas producerad från biomassa/vindkraft (förnybar)* | C32: kg | D32: 33 | E32: kWh/kg | F32: 1.33 | G32: =B32*D32/$B$23*F32 -> 0
A33: Summa | G33: =SUM(G26:G32) -> 0
A34: *får bara fyllas i om vätgasen har använts i ett bränslecellsfordon och INTE om den har använts i ett fordon med förbränningsmotor.
A35: Antal l dieselekvivalenter av förnybart drivmedel och/eller el: | F35: =SUM(G33) -> 0 | G35: =IF(ISBLANK(B22),"Kravet ej nått",IF(G33>=B22,"Kravet uppfyllt", "Kravet ej nått")) -> Kravet ej nått
A36: Antal liter dieselekvivalenter av förnybart drivmedel som saknas för kravuppfyllelse: | F36: =IF(B22>=F35,B22-F35,0) -> 0 | G36: l dieselekvivalenter

Sheet Andel förnybart
A1: Denna flik innehåller tabeller som ska fyllas i för redovisning enligt krav på andel förnybart drivmedel och/eller el samt en instruktion i en faktaruta ovanför tabellen
A2: Krav på andel förnybart drivmedel och/eller el (i energimängd)
A3: Använd denna flik om kravet i AFG.36/AUC.293 är formulerat som minsta andel förnybart drivmedel och/eller el (omräknad till energi) av total energimängd .
A4: Innan du fyller i mallen läs informationen i fliken "Instruktion"
A23: Redovisning gäller för år:
A24: Andel av total drivmedelsmängd omräknat till energi som enligt krav ska vara förnybart:
A26: Tabell A - Fossila drivmedel
A27: Drivmedel | B27: Mängd | C27: Enhet | D27: Energiinnehåll | E27: kWh/enhet | F27: omräkningsfaktor | G27: Total omräknad energimängd (kWh) | H27: Dieselekvivalenter (l)
A28: Fossil Diesel , alkylatbensin och bensin (även sådant som innehåller inblandning av biodrivmedel under reduktionsplikten, ex.vis HVO-97) | C28: l | D28: 9.8 | E28: kWh/liter | F28: 1 | G28: =F28*D28*B28 -> 0 | H28: =B28*D28/$D$28*F28 -> 0
A29: Naturgas (flytande eller gasform) | C29: kg | D29: 13.7 | E29: kWh/kg | F29: 0.75 | G29: =F29*D29*B29 -> 0 | H29: =B29*D29/$D$28*F29 -> 0
A30: Vätgas från ickeförnybara källor | C30: kg | D30: 33 | E30: kWh/kg | F30: 1.33 | G30: =F30*D30*B30 -> 0 | H30: 0
A31: Summa | G31: =SUM(G28:G30) -> 0 | H31: =SUM(H28:H30) -> 0
A33: Tabell B- Förnybara drivmedel och el (omfattas av krav enligt AFG.36/AUC.293)
A34: Drivmedel | B34: Mängd | C34: Enhet | D34: Energiinnehåll | E34: kWh/enhet | F34: omräkningsfaktor | G34: Total omräknad energimängd (kWh) | H34: Dieselekvivalenter (l)
A35: HVO 100% | C35: l | D35: 9.44 | E35: kWh/liter | F35: 1 | G35: =B35*D35*F35 -> 0 | H35: =B35*D35/$D$28*F35 -> 0
A36: RME eller annan FAME 100% | C36: l | D36: 9.17 | E36: kWh/liter | F36: 1 | G36: 0 | H36: =B36*D36/$D$28*F36 -> 0
A37: E85 | C37: l | D37: 6.59 | E37: kWh/liter | F37: 1 | G37: 0 | H37: 0
A38: ED95 | C38: l | D38: 5.9 | E38: kWh/liter | F38: 1 | G38: 0 | H38: 0
A39: Biogas (flytande, gas) eller fordonsgas om den innehåller minst 75% biogas | C39: kg | D39: 13.6 | E39: kWh/kg | F39: 0.75 | G39: 0 | H39: 0
A40: El | C40: kWh | D40: 1 | E40: kWh/kWh | F40: 3 | G40: 0 | H40: 0
A41: Vätgas producerad från biomassa/vindkraft (förnybar)* | C41: kg | D41: 33 | E41: kWh/kg | F41: 1.33 | G41: =B41*D41*F41 -> 0 | H41: =B41*D41/$D$28*F41 -> 0
A42: Summa | G42: =SUM(G35:G41) -> 0 | H42: =SUM(H35:H41) -> 0
A43: *får bara fyllas i om vätgasen har använts i ett bränslecellsfordon och INTE om den har använts i ett fordon med förbränningsmotor.
A47: Andel av total drivmedelsmängd omräknat till energi som är förnybart: | G47: =G42/(G31+G42) ->  | H47: =IF(ISBLANK(B24),"Kravet ej nått",IF(G47>=B24,"Kravet uppfyllt", "Kravet ej nått")) -> Kravet ej nått
A48: Minsta antal liter dieselekvivalenter som enligt krav ska vara förnybara: | G48: =SUM((H42+H31)*B24) -> 0 | H48: liter dieselekvivalenter**
A49: Antal liter dieselekvivalenter av förnybart drivmedel som saknas för kravuppfyllelse: | G49: =IF(G48>=H42,G48-H42,0) -> 0 | H49: liter dieselekvivalenter**
A50: ** används för uppföljning om vite är kopplat till antal liter dieselekvivalenter

Sheet exempel antal l dieselekv.
A1: Denna flik visar ett exempel på hur du fyller i fliken "Antal liter dieselekvivalenter"
A2: Exempel. Krav på antal liter dieselekvivalenter som ska bestå av förnybart drivmedel och/eller el
A16: Redovisning gäller för år: | B16: 2024
A17: Antal liter dieselekvivalenter som ska vara förnybara: | B17: 300000 | C17: l
A18: Energiinehåll fossil diesel: | B18: 9.8 | C18: kWh/l
A19: Tabell 1. Förnybara drivmedel och el (omfattas av krav enligt AFG.36/AUC.293)
A20: Drivmedel | B20: Mängd | C20: Enhet | D20: Energiinnehåll | E20: kWh/enhet | F20: omräkningsfaktor | G20: Dieselekvivalenter (l)
A21: HVO 100% | B21: 100000 | C21: l | D21: 9.44 | E21: kWh/liter | F21: 1 | G21: =B21*D21/$B$18*F21 -> 96326.53061
A22: RME eller annan FAME 100% | C22: l | D22: 9.17 | E22: kWh/liter | F22: 1 | G22: =B22*D22/$B$18*F22 -> 0
A23: E85 | C23: l | D23: 6.59 | E23: kWh/liter | F23: 1 | G23: 0
A24: ED95 | C24: l | D24: 5.9 | E24: kWh/liter | F24: 1 | G24: 0
A25: Biogas (flytande, gas) eller fordonsgas om den innehåller minst 75% biogas | B25: 10000 | C25: kg | D25: 13.6 | E25: kWh/kg | F25: 0.75 | G25: 10408.16327
A26: El | B26: 100000 | C26: kWh | D26: 1 | E26: kWh/kWh | F26: 3 | G26: 30612.2449
A27: Vätgas producerad från biomassa/vindkraft (förnybar)* | C27: kg | D27: 33 | E27: kWh/kg | F27: 1.33 | G27: =B27*D27/$B$18*F27 -> 0
A28: Summa | G28: =SUM(G21:G27) -> 137346.9388
A29: *får bara fyllas i om vätgasen har använts i ett bränslecellsfordon och INTE om den har använts i ett fordon med förbränningsmotor.
A30: Antal l dieselekvivalenter av förnybart drivmedel och/eller el: | F30: =SUM(G28) -> 137346.9388 | G30: =IF(ISBLANK(B17),"Kravet ej nått",IF(G28>=B17,"Kravet uppfyllt", "Kravet ej nått")) -> Kravet ej nått
A31: Antal liter dieselekvivalenter av förnybart drivmedel som saknas för kravuppfyllelse: | F31: =IF(B17>=F30,B17-F30,0) -> 162653.0612 | G31: l dieselekvivalenter

Sheet exempel andel förnybart
A1: Denna flik visar ett exempel på hur du fyller i fliken andel förnybart
A2: Exempel. Krav på andel förnybart drivmedel och/eller el (i energimängd)
A14: Redovisning gäller för år: | B14: 2026
A15: Andel av total drivmedelsmängd omräknat till energi som enligt krav ska vara förnybart: | B15: 0.7
A17: Tabell A - Fossila drivmedel
A18: Drivmedel | B18: Mängd | C18: Enhet | D18: Energiinnehåll | E18: kWh/enhet | F18: omräkningsfaktor | G18: Total omräknad energimängd (kWh) | H18: Dieselekvivalenter (l)
A19: Fossil Diesel , alkylatbensin och bensin (även sådant som innehåller inblandning av biodrivmedel under reduktionsplikten, ex.vis HVO-97) | B19: 500 | C19: l | D19: 9.8 | E19: kWh/liter | F19: 1 | G19: =F19*D19*B19 -> 4900 | H19: =B19*D19/$D$19*F19 -> 500
A20: Naturgas (flytande eller gasform) | B20: 200 | C20: kg | D20: 13.7 | E20: kWh/kg | F20: 0.75 | G20: =F20*D20*B20 -> 2055 | H20: =B20*D20/$D$19*F20 -> 209.6938776
A21: Vätgas från ickeförnybara källor | C21: kg | D21: 33 | E21: kWh/kg | F21: 1.33 | G21: =F21*D21*B21 -> 0 | H21: 0
A22: Summa | G22: =SUM(G19:G21) -> 6955 | H22: =SUM(H19:H21) -> 709.6938776
A24: Tabell B- Förnybara drivmedel och el (omfattas av krav enligt AFG.36/AUC.293)
A25: Drivmedel | B25: Mängd | C25: Enhet | D25: Energi-innehåll | E25: kWh/enhet | F25: omräknings-faktor | G25: Total omräknad energimängd (kWh) | H25: Dieselekvivalenter (l)
A26: HVO 100% | C26: l | D26: 9.44 | E26: kWh/liter | F26: 1 | G26: =B26*D26*F26 -> 0 | H26: =B26*D26/$D$19*F26 -> 0
A27: RME eller annan FAME 100% | C27: l | D27: 9.17 | E27: kWh/liter | F27: 1 | G27: 0 | H27: =B27*D27/$D$19*F27 -> 0
A28: E85 | C28: l | D28: 6.59 | E28: kWh/liter | F28: 1 | G28: 0 | H28: 0
A29: ED95 | C29: l | D29: 5.9 | E29: kWh/liter | F29: 1 | G29: 0 | H29: 0
A30: Biogas (flytande, gas) eller fordonsgas om den innehåller minst 75% biogas | C30: kg | D30: 13.6 | E30: kWh/kg | F30: 0.75 | G30: 0 | H30: 0
A31: El | B31: 3000 | C31: kWh | D31: 1 | E31: kWh/kWh | F31: 3 | G31: 9000 | H31: 918.3673469
A32: Vätgas producerad från biomassa/vindkraft (förnybar)* | B32: 200 | C32: kg | D32: 33 | E32: kWh/kg | F32: 1.33 | G32: =B32*D32*F32 -> 8778 | H32: =B32*D32/$D$19*F32 -> 895.7142857
A33: Summa | G33: =SUM(G26:G32) -> 17778 | H33: =SUM(H26:H32) -> 1814.081633
A34: *får bara fyllas i om vätgasen har använts i ett bränslecellsfordon och INTE om den har använts i ett fordon med förbränningsmotor.
A38: Andel av total drivmedelsmängd omräknat till energi som är förnybart: | G38: =G33/(G22+G33) -> 0.7187967493 | H38: =IF(ISBLANK(B15),"Kravet ej nått",IF(G38>=B15,"Kravet uppfyllt", "Kravet ej nått")) -> Kravet uppfyllt
A39: Minsta antal liter dieselekvivalenter som enligt krav ska vara förnybara: | G39: =SUM((H33+H22)*B15) -> 1766.642857 | H39: liter dieselekvivalenter**
A40: Antal liter dieselekvivalenter av förnybart drivmedel som saknas för kravuppfyllelse: | G40: =IF(G39>=H33,G39-H33,0) -> 0 | H40: liter dieselekvivalenter**
A41: ** används för uppföljning om vite är kopplat till antal liter dieselekvivalenter

Sheet Källhänvisningar
A1: Denna flik innehåller en tabell med energiinnehållsvärden som används i mallens beräkningar. Denna flik är också den sista fliken i mallen
A2: Energiinnehållsvärden som används i denna mall
A4: Drivmedel | B4: Namn i Energimydighetens datalager | C4: Energiinnehåll* | D4: Enhet | E4: Kommentar
A5: Fossil Diesel, Bensin och Alkylatbensin (även sådan som innehåller inblandning av biodrivmedel under reduktionsplikten) | B5: Fossila dieselbränslekomponenter Fossila bensinkomponenter Alkylatbensin | C5: 9.8 | D5: kWh/liter | E5: Fossila bensinkomponenter har egentligen ett energiinehåll på 8,94 kWh/m3 och Alkylatbensin 8,45 kWh/m3 men Trafikverket har valt att omfatta samtliga dessa under energiinehållet för Fossila dieselbärnslekomponenter
A6: Naturgas (flytande eller gasform)** | B6: LNG | C6: 13.7 | D6: kWh/kg | E6: värdet gäller för flytande naturgas (LNG) enligt energimyndigheten men här får den även omfatta naturgas i gasform.
A7: El oavsett ursprung | B7: - | C7: 1*** | D7: kWh/kWh
A8: HVO 100% | B8: BioHVO | C8: 9.44 | D8: kWh/liter
A9: RME eller annan FAME 100% | B9: FAME | C9: 9.17 | D9: kWh/liter
A10: E85 (svensk mix: 81% bioetanol + 19% bensin) | B10: Bioetanol i E85 + Fossila bensinkomponenter | C10: 6.59 | D10: kWh/liter
A11: Vätgas | B11: Vätgas | C11: 33 | D11: kWh/kg
A12: Vätgas producerad från biomassa/vindkraft (förnybar) | B12: Vätgas | C12: 33 | D12: kWh/kg
A13: ED95 | B13: ED95 | C13: 5.9 | D13: kWh/liter
A14: Biogas**** (flytande, gas) eller fordonsgas***** om den innehåller 75% biogas | B14: Fordonsgas - biogas eller Fordonsgas | C14: 13.6 | D14: kWh/kg | E14: värdet gäller för fordonsgas och biogas (gasform) enligt energimyndigheten men här får den även omfatta biogas (flytande).
A15: * Energiinehållet anger hur mycket energi i termer av J eller kWh som utvecklas vid förbränning av en viss mängd av ett bränsleslag . Värdena i denna tabell gäller för år 2017 . Källa: Energimyndighetens datalager
A16: ** Densitet naturgas = 0,777kg/Nm3
A17: *** Källa Rapport 2017/18:RFR13 Fossilfria drivmedel för att minska transportsektorns klimatpåverkan - flytande, gasformiga och elektriska drivmedel inom vägtrafik, sjöfart, luftfart och spårbunden trafik. ISBN 978-91-88607-48-5 Riksdagstryckeriet, Stockholm 2018
A18: ****Densitet Biogas = 0,711kg/Nm3
A19: *****Densitet Fordonsgas = 0,768kg/Nm3
